{"text_format":"3","workbook":"xlsx","n_sheets":2,"sheets":["Teklif Formu","Maliyet Çözümlemesi"],"not_rendered":{"charts":1,"images":2,"defined_names":4},"read":"whole","date_system":"1900"}

{"sheet":"Teklif Formu","index":0,"n_rows":48,"n_cols":7,"rows_kept":48,"merged":[[15,1,25,5],[29,1,31,5],[35,1,37,5],[43,1,45,5]]}
[]
[null,"İNŞAAT TEKLİF FORMU",{"$nulls":4}," "]
[]
[]
[null,"SAHİP BİLGİLERİ",null,null,"YÜKLENİCİ BİLGİLERİ"]
[null,"Ad","Attila Özkan",null,"Şirket","Fabrikam A.Ş."]
[null,"Adres","123 Ali Bey Cad.",null,"Ad","Can Kaya"]
[null,"Şehir, Posta Kodu","Yeşilköy, 12345",null,"Adres","321. Güney Cadde"]
[null,"Telefon",8885550111,null,"Şehir, Posta Kodu","Yeşilköy, 12345"]
[null,"E-posta","attila@bilgipazarlama.com",null,"Telefon",8885550123]
[{"$nulls":4},"E-posta","can@fabrikam.com"]
[null,"Proje adı","İşe giden yol",null,"Tamamlanma tarihi","2013-07-14"]
[]
[null,"İŞİN KAPSAMI"]
[]
[null,"İşin proje kapsamı buradadır. İstediğiniz tüm teknik özellikleri yazın. Bu büyük bir merdiven dizisi inşası model projesidir. Çerçeveyi yapmak için kiriş kollarının yanı sıra yalnızca 2x4 ve 2x8 boyutlarında kereste kullanacağız. Merdivenler 2x4'lük malzemeden kesilecek. 2 inçten küçük vida kullanılmayacak.  Çiviler 10 gramdan az olmayacak. Tasarımın ağırlığı basamak başına en az 225 kilo olacak. Basamaklar evle aynı seviyede olacak. Eve bir marşpiye sabitlenecek. Temizlikten yüklenici sorumlu olacak."]
{"$rows_empty":11}
[null,"EKLENMEMİŞ"]
[]
[null,"Ray kurulmayacak. Zemin ev sahibi tarafından hazırlanacak. Merdivenler ev sahibi tarafından boyanacak."]
[]
[]
[]
[null,"ŞİRKET TEKLİFİ"]
[]
[null,"Fabrikam A.Ş. olarak biz, yukarıdaki iş kapsamını, 476,43 lira tutarı karşılığında 14.07.2013 tarihinde tamamlamayı teklif ediyoruz."]
[]
[]
[]
[null,"(Şirket Temsilcisi) tarafından gönderildi",{"$nulls":3},"Tarih"]
[]
[null,"SAHİBİN KABULÜ"]
[]
[null,"Ben Attila Özkan, 476,43 lira tutarı karşılığında 14.07.2013 tarihinde tamamlanması teklif edilen yukarıdaki iş kapsamını kabul ediyorum."]
[]
[]
[]
[null,"(Ev sahibi ya da yetkili temsilci) tarafından gönderildi",{"$nulls":3},"Tarih"]

{"sheet":"Maliyet Çözümlemesi","index":1,"n_rows":47,"n_cols":6,"rows_kept":47,"merged":[[42,3,42,4],[43,3,43,4],[44,3,44,4],[45,3,45,4],[46,3,46,4],[47,3,47,4],[48,3,48,4],[49,3,49,4]]}
[]
[null,"TEKLİF MALİYETİ ÖZETİ",{"$nulls":3}," "]
[]
[]
[null,"MALZEME VE MALİYET LİSTESİ"]
[]
[null,"Mik.","Açıklama","Maliyet","Toplam"," "]
[null,5,"2x8x10 kereste",{"v":6.75,"d":"6.75 TL"},{"$f":"TeklifÖğeleri[Maliyet]*TeklifÖğeleri[Mik.]","v":{"v":33.75,"d":"33.75 TL"}},{"$f":"_xlfn.RANK.EQ(TeklifÖğeleri[[#This Row],[Toplam]],TeklifÖğeleri[Toplam])","v":4}]
[null,20,"2x4x10 kereste",{"v":4.97,"d":"4.97 TL"},{"$f":"TeklifÖğeleri[Maliyet]*TeklifÖğeleri[Mik.]","v":{"v":99.39999999999999,"d":"99.40 TL"}},{"$f":"_xlfn.RANK.EQ(TeklifÖğeleri[[#This Row],[Toplam]],TeklifÖğeleri[Toplam])","v":2}]
[null,30,"Kiriş kolları",{"v":2.49,"d":"2.49 TL"},{"$f":"TeklifÖğeleri[Maliyet]*TeklifÖğeleri[Mik.]","v":{"v":74.7,"d":"74.70 TL"}},{"$f":"_xlfn.RANK.EQ(TeklifÖğeleri[[#This Row],[Toplam]],TeklifÖğeleri[Toplam])","v":3}]
[null,2,"Bir kutu vida, 2 inç",{"v":6.67,"d":"6.67 TL"},{"$f":"TeklifÖğeleri[Maliyet]*TeklifÖğeleri[Mik.]","v":{"v":13.34,"d":"13.34 TL"}},{"$f":"_xlfn.RANK.EQ(TeklifÖğeleri[[#This Row],[Toplam]],TeklifÖğeleri[Toplam])","v":6}]
[null,2,"Bir kutu çivi, 10 lira",{"v":3.25,"d":"3.25 TL"},{"$f":"TeklifÖğeleri[Maliyet]*TeklifÖğeleri[Mik.]","v":{"v":6.5,"d":"6.50 TL"}},{"$f":"_xlfn.RANK.EQ(TeklifÖğeleri[[#This Row],[Toplam]],TeklifÖğeleri[Toplam])","v":7}]
[null,2,"Bir çift deri eldiven",{"v":7.75,"d":"7.75 TL"},{"$f":"TeklifÖğeleri[Maliyet]*TeklifÖğeleri[Mik.]","v":{"v":15.5,"d":"15.50 TL"}},{"$f":"_xlfn.RANK.EQ(TeklifÖğeleri[[#This Row],[Toplam]],TeklifÖğeleri[Toplam])","v":5}]
[null,2,"İşçi ücretleri",{"v":100,"d":"100.00 TL"},{"$f":"TeklifÖğeleri[Maliyet]*TeklifÖğeleri[Mik.]","v":{"v":200,"d":"200.00 TL"}},{"$f":"_xlfn.RANK.EQ(TeklifÖğeleri[[#This Row],[Toplam]],TeklifÖğeleri[Toplam])","v":1}]
[{"$nulls":4},{"$f":"TeklifÖğeleri[Maliyet]*TeklifÖğeleri[Mik.]","v":0},{"$f":"_xlfn.RANK.EQ(TeklifÖğeleri[[#This Row],[Toplam]],TeklifÖğeleri[Toplam])","v":8}]
[{"$nulls":4},{"$f":"TeklifÖğeleri[Maliyet]*TeklifÖğeleri[Mik.]","v":0},{"$f":"_xlfn.RANK.EQ(TeklifÖğeleri[[#This Row],[Toplam]],TeklifÖğeleri[Toplam])","v":8}]
[{"$nulls":4},{"$f":"TeklifÖğeleri[Maliyet]*TeklifÖğeleri[Mik.]","v":0},{"$f":"_xlfn.RANK.EQ(TeklifÖğeleri[[#This Row],[Toplam]],TeklifÖğeleri[Toplam])","v":8}]
[{"$nulls":4},{"$f":"TeklifÖğeleri[Maliyet]*TeklifÖğeleri[Mik.]","v":0},{"$f":"_xlfn.RANK.EQ(TeklifÖğeleri[[#This Row],[Toplam]],TeklifÖğeleri[Toplam])","v":8}]
[{"$nulls":4},{"$f":"TeklifÖğeleri[Maliyet]*TeklifÖğeleri[Mik.]","v":0},{"$f":"_xlfn.RANK.EQ(TeklifÖğeleri[[#This Row],[Toplam]],TeklifÖğeleri[Toplam])","v":8}]
[{"$nulls":4},{"$f":"TeklifÖğeleri[Maliyet]*TeklifÖğeleri[Mik.]","v":0},{"$f":"_xlfn.RANK.EQ(TeklifÖğeleri[[#This Row],[Toplam]],TeklifÖğeleri[Toplam])","v":8}]
[{"$nulls":4},{"$f":"TeklifÖğeleri[Maliyet]*TeklifÖğeleri[Mik.]","v":0},{"$f":"_xlfn.RANK.EQ(TeklifÖğeleri[[#This Row],[Toplam]],TeklifÖğeleri[Toplam])","v":8}]
[{"$nulls":4},{"$f":"TeklifÖğeleri[Maliyet]*TeklifÖğeleri[Mik.]","v":0},{"$f":"_xlfn.RANK.EQ(TeklifÖğeleri[[#This Row],[Toplam]],TeklifÖğeleri[Toplam])","v":8}]
[{"$nulls":4},{"$f":"TeklifÖğeleri[Maliyet]*TeklifÖğeleri[Mik.]","v":0},{"$f":"_xlfn.RANK.EQ(TeklifÖğeleri[[#This Row],[Toplam]],TeklifÖğeleri[Toplam])","v":8}]
[{"$nulls":4},{"$f":"TeklifÖğeleri[Maliyet]*TeklifÖğeleri[Mik.]","v":0},{"$f":"_xlfn.RANK.EQ(TeklifÖğeleri[[#This Row],[Toplam]],TeklifÖğeleri[Toplam])","v":8}]
[{"$nulls":4},{"$f":"TeklifÖğeleri[Maliyet]*TeklifÖğeleri[Mik.]","v":0},{"$f":"_xlfn.RANK.EQ(TeklifÖğeleri[[#This Row],[Toplam]],TeklifÖğeleri[Toplam])","v":8}]
[{"$nulls":4},{"$f":"TeklifÖğeleri[Maliyet]*TeklifÖğeleri[Mik.]","v":0},{"$f":"_xlfn.RANK.EQ(TeklifÖğeleri[[#This Row],[Toplam]],TeklifÖğeleri[Toplam])","v":8}]
[{"$nulls":4},{"$f":"TeklifÖğeleri[Maliyet]*TeklifÖğeleri[Mik.]","v":0},{"$f":"_xlfn.RANK.EQ(TeklifÖğeleri[[#This Row],[Toplam]],TeklifÖğeleri[Toplam])","v":8}]
[{"$nulls":4},{"$f":"TeklifÖğeleri[Maliyet]*TeklifÖğeleri[Mik.]","v":0},{"$f":"_xlfn.RANK.EQ(TeklifÖğeleri[[#This Row],[Toplam]],TeklifÖğeleri[Toplam])","v":8}]
[{"$nulls":4},{"$f":"TeklifÖğeleri[Maliyet]*TeklifÖğeleri[Mik.]","v":0},{"$f":"_xlfn.RANK.EQ(TeklifÖğeleri[[#This Row],[Toplam]],TeklifÖğeleri[Toplam])","v":8}]
[{"$nulls":4},{"$f":"TeklifÖğeleri[Maliyet]*TeklifÖğeleri[Mik.]","v":0},{"$f":"_xlfn.RANK.EQ(TeklifÖğeleri[[#This Row],[Toplam]],TeklifÖğeleri[Toplam])","v":8}]
[1,{"$nulls":3},{"$f":"TeklifÖğeleri[Maliyet]*TeklifÖğeleri[Mik.]","v":0},{"$f":"_xlfn.RANK.EQ(TeklifÖğeleri[[#This Row],[Toplam]],TeklifÖğeleri[Toplam])","v":8}]
[2,null,null,"Alt Toplam",{"$f":"SUBTOTAL(109,TeklifÖğeleri[Toplam])","v":{"v":443.18999999999994,"d":"443.19 TL"}}]
[3,null,null,"Vergi oranı",{"v":0.075,"d":"7.50%"}]
[4,null,null,"Vergi",{"$f":"VergiOranı*TeklifÖğeleri[[#Totals],[Toplam]]","v":{"v":33.23924999999999,"d":"33.24 TL"}}]
[5,null,null,"Genel toplam",{"$f":"VergiOranı+TeklifÖğeleri[[#Totals],[Toplam]]","v":{"v":443.26499999999993,"d":"443.27 TL"}}]
[]
[]
[]
[null,"MALZEME VE MALİYET ÇÖZÜMLEMESİ"]
[]
[]
[null,null,"TOPLAM","NOTLAR"]
[null,{"$f":"INDEX(TeklifÖğeleri[],MATCH(A31,TeklifÖğeleri[[ ]],0),2)","v":"İşçi ücretleri"},{"$f":"INDEX(TeklifÖğeleri[],MATCH(A31,TeklifÖğeleri[[ ]],0),4)","v":{"v":200,"d":"$200.00"}}]
[null,{"$f":"INDEX(TeklifÖğeleri[],MATCH(A32,TeklifÖğeleri[[ ]],0),2)","v":"2x4x10 kereste"},{"$f":"INDEX(TeklifÖğeleri[],MATCH(A32,TeklifÖğeleri[[ ]],0),4)","v":{"v":99.39999999999999,"d":"$99.40"}}]
[null,{"$f":"INDEX(TeklifÖğeleri[],MATCH(A33,TeklifÖğeleri[[ ]],0),2)","v":"Kiriş kolları"},{"$f":"INDEX(TeklifÖğeleri[],MATCH(A33,TeklifÖğeleri[[ ]],0),4)","v":{"v":74.7,"d":"$74.70"}}]
[null,{"$f":"INDEX(TeklifÖğeleri[],MATCH(A34,TeklifÖğeleri[[ ]],0),2)","v":"2x8x10 kereste"},{"$f":"INDEX(TeklifÖğeleri[],MATCH(A34,TeklifÖğeleri[[ ]],0),4)","v":{"v":33.75,"d":"$33.75"}}]
[null,{"$f":"INDEX(TeklifÖğeleri[],MATCH(A35,TeklifÖğeleri[[ ]],0),2)","v":"Bir çift deri eldiven"},{"$f":"INDEX(TeklifÖğeleri[],MATCH(A35,TeklifÖğeleri[[ ]],0),4)","v":{"v":15.5,"d":"$15.50"}}]